[Event "34th Pula Open 2022"]
[Site "Pula"]
[Date "2022.06.20"]
[Round "3.1"]
[White "Jurakic, Lukas"]
[Black "Fercec, Nenad"]
[Result "0-1"]
[ECO "B94"]
[WhiteElo "2147"]
[BlackElo "2415"]
[Annotator "TA"]
[PlyCount "116"]
[EventDate "2022.06.18"]
[EventType "swiss"]
[EventCountry "CRO"]
[SourceTitle "playchess.com"]
[Source "ChessBase"]
[SourceQuality "1"]
[TimeControl "5400+30"]

{[%evp 12,116,33,2,18,1,18,14,12,0,0,-10,-11,-54,-1,0,18,-33,-35,-32,-45,-30,-4,-98,0,-12,-5,-10,-14,-18,-17,-29,-19,-32,-26,-25,-14,-41,-40,-46,-35,-52,-50,-60,-60,-75,-75,-73,-78,-79,-71,-71,-71,-71,-71,-83,-71,-71,-71,-107,-80,-80,-87,-87,-94,-251,-256,-250,-234,-239,-240,-237,-235,-241,-223,-267,-222,-558,-553,-597,-590,-568,-180,-473,-452,-872,-857,-846,-812,-698,-640,-896,-887,-800,-776,-29979,-29979,-29979,-29980,-29980,-29981,-29981,-29982,-29982,-29983,-29983,-29984]} 1. e4 {[%emt 0:00:05]} c5 {[%emt 0:00:05]} 2. Nf3 {[%emt 0:00:11]} d6 {[%emt 0:00:05]} 3. d4 {[%emt 0:00:06]} cxd4 {[%emt 0:00:05]} 4. Nxd4 {[%emt 0:00:05]} Nf6 {[%emt 0:00:05]} 5. Nc3 {[%emt 0:00:08]} a6 {[%emt 0:00:07]} 6. Bg5 {[%emt 0:00:20]} Nbd7 {[%emt 0:00:07]} 7. f4 {[%emt 0:00:26] 7.Qe2 is the recent fashion.} Qa5 {[%emt 0:00:53] B94: Sicilian Najdorf: 6 Bg5 Nbd7.} 8. Qe2 {[%emt 0:10:09]} e5 {[%emt 0:00:59]} 9. Nb3 {[%emt 0:07:19]} Qc7 {[%emt 0:00:08] The position is equal.} 10. O-O-O {[%emt 0:02:17]} b5 {[%emt 0:00:09] [#]} 11. fxe5 $146 {[%emt 0:12:35]} ({Predecessor:} 11. Nd5 Nxd5 12. exd5 g6 13. fxe5 Nxe5 14. Qd2 h5 15. Be2 Bg7 16. Qa5 Qxa5 17. Nxa5 {½-½ (25) Peng,H (2256)-Liu,Z (1969) Jiangmen 2018}) 11... dxe5 {[%emt 0:00:31]} 12. g3 {[%emt 0:03:29]} Be7 {[%emt 0:16:35]} ({Black should play} 12... h6 $15 13. Be3 Bb4) 13. h4 $11 {[%emt 0:09:41]} Nb6 {[%emt 0:10:31]} 14. Bg2 {[%emt 0:08:40]} (14. Bxf6 $11 Bxf6 15. Bg2) 14... Bg4 $15 {[%emt 0:00:43]} 15. Bf3 {[%emt 0:00:51]} Bxf3 {[%emt 0:00:13]} 16. Qxf3 {[%emt 0:00:05]} Rc8 {[%emt 0:00:14]} (16... b4 $5 {[%cal Rb4c3]} 17. Nd5 Nfxd5 18. exd5 Rc8 $11) 17. Rh2 {[%emt 0:08:07] [#]} (17. Bxf6 $11 {keeps the balance.} Bxf6 18. Rh2) 17... O-O {[%emt 0:06:31]} (17... b4 $1 $17 {[%cal Rb4c3]} 18. Nd5 Nfxd5 19. exd5 f6) 18. Bxf6 {[%emt 0:00:59]} Bxf6 {[%emt 0:00:10]} 19. Nd5 {[%emt 0:00:43]} Nxd5 {[%emt 0:00:10]} 20. Rxd5 {[%emt 0:00:14]} Rfd8 {[%emt 0:00:58]} 21. Rxd8+ {[%emt 0:01:24]} Rxd8 {[%emt 0:07:47]} 22. Rd2 {[%emt 0:00:28]} Rxd2 {[%emt 0:01:42]} 23. Kxd2 {[%emt 0:01:50][%mdl 4096] Endgame KQB-KQN} Be7 {[%emt 0:02:31]} 24. Qd3 {[%emt 0:03:34]} Qb6 {[%emt 0:00:29]} 25. Qe3 {[%emt 0:04:37] Inhibits Qf2+.} Qc6 {[%emt 0:01:51]} 26. c3 {[%emt 0:00:51]} g6 {[%emt 0:00:41]} 27. Nc1 {[%emt 0:03:37]} b4 {[%emt 0:01:11]} 28. Qd3 {[%emt 0:02:01]} bxc3+ {[%emt 0:00:28]} 29. bxc3 {[%emt 0:00:15]} Qb6 {[%emt 0:02:44]} 30. Ne2 {[%emt 0:03:28]} Qb2+ {[%emt 0:05:22]} 31. Qc2 {[%emt 0:00:04]} Qb7 {[%emt 0:00:57] Black is more active.} 32. Qa4 {[%emt 0:01:38]} Kg7 {[%emt 0:00:54]} 33. Qc4 {[%emt 0:01:19]} Qb2+ {[%emt 0:02:56]} 34. Ke3 {[%emt 0:03:24]} Qb6+ {[%emt 0:00:29]} 35. Kf3 {[%emt 0:00:33]} Bc5 {[%emt 0:00:24] ...Qf6+ is the strong threat.} 36. Kg2 {[%emt 0:01:42]} Be3 {[%emt 0:03:40] aiming for ...Qf6.} 37. Qd3 {[%emt 0:00:47]} h5 {[%emt 0:01:08]} 38. Kf3 $2 {[%emt 0:02:10] This costs White the game.} (38. a4 $17) 38... Bc5 $19 {[%emt 0:00:10] Hoping for ...Qf6+.} 39. Kg2 {[%emt 0:00:31] [#]} Qf6 $1 {[%emt 0:00:35]} 40. Qf3 {[%emt 0:00:55]} Qe6 {[%emt 0:00:07]} 41. Nc1 {[%emt 0:00:46]} Ba7 {[%emt 0:00:23]} 42. Qe2 {[%emt 0:04:11]} Qc6 {[%emt 0:00:48]} 43. c4 {[%emt 0:01:04]} Qc5 {[%emt 0:01:37] Threatens to win with ...Qg1+.} 44. Nb3 $2 {[%emt 0:01:13]} (44. Kf3 {was the crucial defense.}) 44... Qg1+ {[%emt 0:00:14]} 45. Kf3 {[%emt 0:00:25]} a5 {[%emt 0:02:20] Strongly threatening ...Qh1+.} 46. Nd2 {[%emt 0:01:36]} Qh1+ {[%emt 0:01:17]} 47. Qg2 {[%emt 0:00:07]} Qa1 {[%emt 0:00:18]} 48. Qe2 {[%emt 0:01:53]} (48. Ke2 $142 Bd4 49. Qf3) 48... Qxa2 {[%emt 0:00:35] And now ...Qa1 would win.} 49. Qd3 {[%emt 0:00:28]} Qa1 {[%emt 0:01:56]} 50. Ke2 {[%emt 0:00:40] Against Qe1+} Bd4 {[%emt 0:00:32]} 51. Nb3 {[%emt 0:00:47]} Qb2+ {[%emt 0:00:07]} 52. Kd1 {[%emt 0:00:25]} a4 {[%emt 0:00:35][%cal Ba5a4,Ba4a3][%mdl 32]} 53. Nxd4 {[%emt 0:00:16]} Qxd4 {[%emt 0:02:38] Black mates.} 54. Kc2 {[%emt 0:00:12]} Qxd3+ {[%emt 0:02:15]} 55. Kxd3 {[%emt 0:00:05] KP-KP} a3 {[%emt 0:00:30]} 56. Kc3 {[%emt 0:00:24]} f5 {[%emt 0:00:05][%cal Bf7f5,Bf5e4][%mdl 32]} 57. c5 {[%emt 0:01:45]} Kf7 {[%emt 0:00:12]} 58. Kb3 {[%emt 0:00:08]} fxe4 {[%emt 0:00:36] Weighted Error Value: White=0.50/Black=0.15 (very precise)} 0-1

[Event "34th Pula Open 2022"]
[Site "Pula"]
[Date "2022.06.20"]
[Round "3.2"]
[White "Cvitan, Ena"]
[Black "Popovic, Milan S"]
[Result "0-1"]
[ECO "E61"]
[WhiteElo "2251"]
[BlackElo "2383"]
[Annotator "TA"]
[PlyCount "56"]
[EventDate "2022.06.18"]
[EventType "swiss"]
[EventCountry "CRO"]
[SourceTitle "playchess.com"]
[Source "ChessBase"]
[SourceQuality "1"]
[TimeControl "5400+30"]

{[%evp 9,56,39,48,43,46,44,37,36,43,39,33,35,35,33,27,21,19,0,0,0,4,0,65,0,58,-123,-132,-126,-113,-272,-265,-287,-276,-275,-261,-277,-266,-505,-502,-469,-398,-802,-769,-764,-756,-703,-689,-666,-653]} 1. d4 {[%emt 0:00:04]} Nf6 {[%emt 0:02:49]} 2. c4 {[%emt 0:00:30]} g6 {[%emt 0:00:30]} 3. Nc3 {[%emt 0:00:30]} d6 {[%emt 0:00:00]} 4. e4 {[%emt 0:01:38]} Nbd7 {[%emt 0:00:00]} 5. Be3 {[%emt 0:00:41]} e5 {[%emt 0:00:00]} 6. d5 {[%emt 0:00:06] E61: King's Indian: Early deviations for White, including Smyslov System.} h5 {[%emt 0:00:00]} 7. f3 {[%emt 0:08:24]} Bh6 {[%emt 0:00:00]} 8. Bxh6 {[%emt 0:00:06] White is slightly better.} Rxh6 {[%emt 0:00:00]} 9. Qd2 {[%emt 0:00:05]} Rh8 {[%emt 0:00:00]} 10. h4 {[%emt 0:02:16]} a5 {[%emt 0:02:50] [#]} 11. g3 $146 {[%emt 0:04:43]} ({Predecessor:} 11. Nh3 Nc5 12. Nf2 Kf8 13. Be2 Bd7 14. g3 Kg7 15. Nd3 Nxd3+ 16. Bxd3 Ng8 17. O-O-O {0-1 (40) Bolognese,L (2069)-Dobrikov,M (2301) Bassano del Grappa 2021}) 11... Nc5 {[%emt 0:10:03]} 12. Bh3 {[%emt 0:01:28]} c6 {[%emt 0:07:09]} 13. O-O-O {[%emt 0:04:23]} cxd5 {[%emt 0:11:15]} 14. Nxd5 {[%emt 0:01:12]} Nxd5 {[%emt 0:00:31]} 15. Qxd5 {[%emt 0:13:02]} Ke7 {[%emt 0:08:13]} (15... f5 $11) 16. Qd2 {[%emt 0:03:27]} (16. Kb1 $14) 16... Be6 {[%emt 0:09:06]} (16... Bxh3 $11 17. Rxh3 Rc8) 17. Qg5+ $2 {[%emt 0:04:12] [#]} (17. Bxe6 $1 $14 Nxe6 18. Kb1) 17... f6 $1 $17 {[%emt 0:02:20]} 18. Qe3 {[%emt 0:08:26]} (18. Qxg6 Bf7 19. Qf5 (19. Qg7 $2 Qb6 $19) 19... Qe8 $19) 18... Bxc4 {[%emt 0:01:13]} 19. b3 $2 {[%emt 0:00:05] This move loses the game for White.} (19. Kb1 $17) 19... Bf7 $19 {[%emt 0:01:23]} 20. Rh2 {[%emt 0:05:30]} Qb6 {[%emt 0:02:53]} 21. Rb2 {[%emt 0:00:08]} a4 {[%emt 0:03:09]} 22. bxa4 {[%emt 0:00:49]} Qc6 {[%emt 0:00:27] [#] aiming for ...Nd3+.} 23. Rc2 $2 {[%emt 0:01:35]} (23. Kd2 {is the only way for White.}) 23... Rxa4 {[%emt 0:00:30] White must now prevent ...Rha8.} 24. Ne2 {[%emt 0:02:19]} Rxa2 {[%emt 0:01:24]} 25. Rxc5 $2 {[%emt 0:00:32]} (25. Rxa2 Bxa2 26. Kd2) 25... Qxc5+ {[%emt 0:00:56] Black is clearly winning.} 26. Qxc5 {[%emt 0:00:07]} dxc5 {[%emt 0:00:02]} 27. Rd7+ {[%emt 0:00:52]} Kf8 {[%emt 0:00:15]} 28. Nc3 {[%emt 0:01:06]} Rh2 {[%emt 0:00:03] Weighted Error Value: White=0.61/Black=0.11 (very precise)} 0-1

[Event "34th Pula Open 2022"]
[Site "Pula"]
[Date "2022.06.20"]
[Round "3.3"]
[White "Lindgren, Philip"]
[Black "Babic, Drasko"]
[Result "0-1"]
[ECO "E11"]
[WhiteElo "2369"]
[BlackElo "2205"]
[Annotator "TA"]
[PlyCount "116"]
[EventDate "2022.06.18"]
[EventType "swiss"]
[EventCountry "CRO"]
[SourceTitle "playchess.com"]
[Source "ChessBase"]
[SourceQuality "1"]
[TimeControl "5400+30"]

{[%evp 10,116,17,22,32,29,33,19,54,37,41,38,36,31,18,-28,-22,-31,-25,-102,-94,-129,-67,-173,-166,-158,-159,-168,-114,-124,-114,-107,-104,-104,-114,-114,-111,-113,-87,-84,-70,-70,-69,-45,-58,-57,-62,-112,-90,-100,-69,-78,-91,-95,-48,-112,-26,-162,-81,-170,0,0,0,0,0,0,0,0,0,0,0,0,0,0,0,-14,-32,-636,-647,-710,-698,-674,-662,-635,-613,-597,-567,-518,-507,-418,-351,-998,-992,-953,-683,-600,-600,-507,-507,-29979,-29980,-29980,-29981,-29981,-29982,-29986,-29987,-29987,-29988]} 1. d4 {[%emt 0:00:06]} Nf6 {[%emt 0:00:36]} 2. c4 {[%emt 0:00:23]} e6 {[%emt 0:00:28]} 3. Nf3 {[%emt 0:00:37]} Bb4+ {[%emt 0:00:48]} 4. Nbd2 {[%emt 0:01:15]} O-O {[%emt 0:01:05]} 5. a3 {[%emt 0:00:36]} Be7 {[%emt 0:02:11]} 6. e4 {[%emt 0:01:23]} d6 {[%emt 0:00:45][%cal Oe6e5] E11: Bogo-Indian.} 7. Be2 {[%emt 0:02:07]} Nfd7 {[%emt 0:01:59]} 8. Nb1 {[%emt 0:05:41] [#]} Bf6 $146 {[%emt 0:05:00] The position is equal.} ({Predecessor:} 8... d5 9. Nc3 dxe4 10. Nxe4 Nf6 11. Qc2 Nbd7 12. Neg5 c5 13. Be3 Qa5+ 14. Kf1 Qc7 {0-1 (74) Carlsen,M (2863)-Ivanchuk,V (2678) chess24.com INT 2020}) 9. Nc3 {[%emt 0:01:09]} c5 {[%emt 0:11:51]} 10. Be3 {[%emt 0:03:25]} Nc6 {[%emt 0:03:25]} 11. d5 {[%emt 0:04:53]} exd5 {[%emt 0:01:56]} 12. exd5 {[%emt 0:04:42]} (12. cxd5 {might be stronger.} Bxc3+ 13. bxc3) 12... Bxc3+ $11 {[%emt 0:00:50]} 13. bxc3 {[%emt 0:00:09]} Nce5 {[%emt 0:01:19]} 14. Nd2 {[%emt 0:05:53]} (14. Nxe5 $11 Nxe5 15. O-O) 14... f5 $17 {[%emt 0:05:27]} 15. g3 {[%emt 0:03:48]} Ng4 {[%emt 0:05:53]} (15... Qe7 $17 {[%cal Of5f4]} 16. h4 f4 17. gxf4 Ng6) 16. Nf1 {[%emt 0:27:51]} (16. Bf4 $15) 16... Nxe3 $19 {[%emt 0:01:58]} 17. Nxe3 {[%emt 0:00:07]} f4 {[%emt 0:01:27]} 18. gxf4 {[%emt 0:01:47] [#]} Rxf4 {[%emt 0:01:02]} ({Black should try} 18... Nb6 $1 $19 19. Qd2 Qe7) 19. Ng2 $17 {[%emt 0:04:39]} Rf7 {[%emt 0:05:58]} 20. O-O {[%emt 0:00:43]} Qf6 {[%emt 0:01:25]} 21. Qd2 {[%emt 0:01:01]} Ne5 {[%emt 0:01:39]} 22. f4 {[%emt 0:00:21]} Ng6 {[%emt 0:00:58]} 23. Bh5 {[%emt 0:05:56]} Bf5 {[%emt 0:01:39]} 24. Rae1 {[%emt 0:00:30]} Re7 {[%emt 0:00:30]} 25. Bxg6 {[%emt 0:00:49]} hxg6 {[%emt 0:01:04]} 26. Rxe7 {[%emt 0:00:17]} Qxe7 {[%emt 0:00:10]} 27. Re1 {[%emt 0:00:05] Against Qe4} Qf6 {[%emt 0:01:00]} 28. Qe3 {[%emt 0:02:39]} ({White should play} 28. Re3 $15) 28... Kf7 {[%emt 0:03:34]} 29. Qg3 {[%emt 0:06:08]} Re8 {[%emt 0:00:37]} 30. Rxe8 {[%emt 0:03:17]} Kxe8 $15 {[%emt 0:00:08][%mdl 4096] Endgame KQB-KQN} 31. Nh4 {[%emt 0:00:16]} Kd7 {[%emt 0:02:57]} (31... Bc2 $17) 32. Kf2 {[%emt 0:02:02]} (32. Nxf5 $15 Qxf5 33. Qe3) 32... Kc7 {[%emt 0:01:22]} (32... Be4 $17) 33. Ke2 {[%emt 0:01:59]} (33. Nxf5 $11 {and White is okay.} Qxf5 34. Qe3) 33... Qe7+ {[%emt 0:03:59]} (33... Bb1 $19 34. Kd2 Qe7) 34. Kd2 {[%emt 0:00:13] [#]} (34. Kf2 $17 {was called for.}) 34... Kb6 $2 {[%emt 0:00:20]} (34... Bb1 $1 $19 {And now ...Qe4 would win.} 35. Qe1 Qxe1+ 36. Kxe1 Bd3) 35. Nxf5 $11 {[%emt 0:03:47]} gxf5 {[%emt 0:00:18] KQ-KQ} 36. Qg6 {[%emt 0:00:08]} Ka5 {[%emt 0:05:33]} 37. Qxf5 {[%emt 0:01:26]} Qh4 {[%emt 0:00:16]} 38. Qd7 {[%emt 0:06:49][%csl Gc4][%cal Rd7b5]} Qxf4+ {[%emt 0:02:49]} 39. Kc2 {[%emt 0:00:08][%csl Gc4][%cal Rd7b5]} Qxc4 {[%emt 0:03:41]} 40. Qxd6 {[%emt 0:00:07]} Qe2+ {[%emt 0:07:22]} 41. Kc1 $1 {[%emt 0:00:19]} Kb5 {[%emt 0:02:33] aiming for ...Qe3+.} 42. Qd7+ {[%emt 0:01:22]} Kc4 {[%emt 0:00:35] White must now prevent ...Qe1+.} 43. Qxb7 $2 {[%emt 0:00:35][%mdl 8192] Black keeps a firm grip on the game.} (43. Qxg7 $15 Qxh2 44. Qg4+ Kxc3 45. Qg7+ Kc4 46. Qg4+ Kc3 47. Qf3+ Kd4 48. Qg4+ Kc3) 43... Qe1+ $19 {[%emt 0:01:16]} 44. Kb2 {[%emt 0:00:31] Hoping for Qb3+.} Qxc3+ {[%emt 0:00:37]} 45. Ka2 {[%emt 0:00:28]} Qd2+ {[%emt 0:00:21]} 46. Kb1 {[%emt 0:00:29]} Qe1+ {[%emt 0:00:23]} 47. Kc2 {[%emt 0:00:31]} Qe4+ {[%emt 0:00:48]} 48. Kb2 {[%emt 0:00:31]} Qg2+ {[%emt 0:00:16]} 49. Kb1 {[%emt 0:00:14]} Qh1+ {[%emt 0:00:16]} 50. Ka2 $2 {[%emt 0:00:15]} (50. Kc2 Qxh2+ 51. Kb1) 50... Qxh2+ {[%emt 0:00:17]} 51. Kb1 {[%emt 0:00:17]} Qh1+ {[%emt 0:01:03]} 52. Kb2 {[%emt 0:00:08]} Qg2+ {[%emt 0:00:22]} 53. Kb1 {[%emt 0:00:07]} Kc3 {[%emt 0:00:19]} 54. Qb5 {[%emt 0:01:29]} (54. Ka1 $19 Qh1+ 55. Ka2 Qh2+ 56. Kb1 Qc2+ 57. Ka1) 54... Qh1+ {[%emt 0:03:20] Black mates.} 55. Ka2 {[%emt 0:00:08]} Qxd5+ {[%emt 0:00:13]} 56. Ka1 {[%emt 0:00:05]} Qd4 {[%emt 0:01:33]} 57. Qb1 {[%emt 0:01:40]} Kd2+ {[%emt 0:01:02]} 58. Ka2 {[%emt 0:00:08]} Qc4+ {[%emt 0:00:13] Weighted Error Value: White=0.46/Black=0.20 (precise)} 0-1

[Event "34th Pula Open 2022"]
[Site "Pula"]
[Date "2022.06.20"]
[Round "3.4"]
[White "Makovec, Bruno"]
[Black "Pastar, Slaven"]
[Result "1-0"]
[ECO "E18"]
[WhiteElo "2215"]
[BlackElo "2300"]
[Annotator "TA"]
[PlyCount "139"]
[EventDate "2022.06.18"]
[EventType "swiss"]
[EventCountry "CRO"]
[SourceTitle "playchess.com"]
[Source "ChessBase"]
[SourceQuality "1"]
[TimeControl "5400+30"]

{[%evp 15,138,0,22,19,30,22,29,33,34,6,0,0,44,46,95,118,116,112,123,114,120,117,160,150,156,157,163,140,197,199,191,194,410,144,143,157,232,227,223,205,226,217,292,199,255,262,327,307,349,338,596,591,580,434,433,415,408,397,723,722,728,370,683,370,370,370,370,370,370,370,370,370,349,348,29965,29966,29965,29967,29967,29968,29968,29969,29969,29970,29970,29971,29970,29970,29970,29971,29971,29970,29970,29971,29974,29974,29974,29974,29977,29978,29978,29979,29982,29983,29983,29984,29984,29985,29986,29985,29987,29988,29989,29989,29988,29989,29989,29990,29990,29989,29997,29998,29998,29999,29999]} 1. d4 {[%emt 0:00:57]} e6 {[%emt 0:00:38]} 2. c4 {[%emt 0:00:36]} Nf6 {[%emt 0:01:14]} 3. Nf3 {[%emt 0:01:04]} b6 {[%emt 0:00:12]} 4. g3 {[%emt 0:04:10]} Bb7 {[%emt 0:00:26]} 5. Bg2 {[%emt 0:00:29]} Be7 {[%emt 0:00:10]} 6. O-O {[%emt 0:00:30]} O-O {[%emt 0:00:21]} 7. Nc3 {[%emt 0:01:27]} Ne4 {[%emt 0:00:11]} 8. Bd2 $1 {[%emt 0:03:03][%mdl 4] outshines the older 8.Qc2.} f5 {[%emt 0:01:17]} 9. Ne5 {[%emt 0:11:36] E18: Queen's Indian: Old Main Line (4 g3 Bb7 5 Bg2 Be7 6 0-0 0-0 7 Nc3).} Nxc3 {[%emt 0:01:45]} 10. Bxc3 {[%emt 0:00:12]} Bxg2 {[%emt 0:00:06]} (10... Nc6 11. Nxc6 dxc6 12. b4 $16) 11. Kxg2 {[%emt 0:00:05] White has an edge.} d6 {[%emt 0:00:14]} 12. Nf3 {[%emt 0:02:58][%cal Be5f3,Bf3d4,Bd4e6,Be6c7,Bc7d5][%mdl 32]} Nd7 {[%emt 0:01:38]} 13. Qd3 {[%emt 0:06:49] [#]} Nf6 $146 {[%emt 0:03:30]} ({Predecessor:} 13... Qc8 14. e4 Qb7 15. Rae1 Rae8 16. exf5 exf5 17. Re6 Bd8 18. Rxe8 Rxe8 19. Qxf5 Nf6 {1-0 (44) Meier,G (2631)-Amezcua Luria,J (2001) Mexico City 2022}) 14. d5 {[%emt 0:13:22]} Qd7 {[%emt 0:09:28]} (14... exd5 $14 15. cxd5 (15. Qxf5 dxc4 16. Qe6+ Kh8 $11) 15... Ne4) 15. dxe6 $1 $16 {[%emt 0:13:12]} Qxe6 {[%emt 0:00:15]} 16. Nd4 {[%emt 0:00:06][%csl LRe6,LRf5]} Qe4+ {[%emt 0:00:22]} 17. f3 {[%emt 0:00:17]} Qxd3 {[%emt 0:01:00]} 18. exd3 {[%emt 0:00:01]} Nd7 {[%emt 0:07:40]} 19. Ne6 {[%emt 0:02:08][%csl LRc7,LRf8,LRg7]} Rf7 {[%emt 0:03:08]} 20. Nxc7 {[%emt 0:02:01] White is much more active. The black rooks are badly placed.} Rc8 {[%emt 0:00:20]} 21. Nd5 $36 {[%emt 0:00:19][%mdl 2048] Keeping Black busy.} Bf6 {[%emt 0:01:01]} (21... Nc5 $16 22. Rad1 Na6) 22. Rfe1 {[%emt 0:05:38][%cal Bf1e1,Be1e6,Be6d6][%mdl 32] Strongly threatening Bxf6.} Kf8 {[%emt 0:04:34]} 23. Re6 {[%emt 0:04:51]} Be5 $2 {[%emt 0:11:13]} (23... Bxc3 24. Nxc3 (24. bxc3 Ne5 $16) 24... Rf6) 24. Bb4 $2 {[%emt 0:04:29]} (24. d4 $18 {and the rest is easy.}) 24... Nc5 {[%emt 0:05:21]} 25. Bxc5 {[%emt 0:01:44]} bxc5 {[%emt 0:00:30] [#]} (25... Rxc5 $16 26. Rd1 Bxb2 27. Rxd6 Rc8) 26. f4 $1 $18 {[%emt 0:07:41]} Bxb2 {[%emt 0:03:04]} 27. Rb1 {[%emt 0:01:58]} Rb7 {[%emt 0:02:29]} 28. Rxd6 {[%emt 0:02:24]} Kf7 {[%emt 0:04:30]} 29. Kf3 {[%emt 0:00:54]} g6 {[%emt 0:07:07]} (29... Rcb8 {was necessary.} 30. a4 Kf8) 30. h3 {[%emt 0:01:44]} h5 {[%emt 0:01:26]} 31. g4 {[%emt 0:03:15]} hxg4+ {[%emt 0:02:15]} 32. hxg4 {[%emt 0:00:09]} Rh8 $2 {[%emt 0:06:45]} (32... fxg4+ {was called for.} 33. Kxg4 Re8) 33. gxf5 {[%emt 0:01:04]} gxf5 {[%emt 0:03:58] [#]} 34. Rf6+ $3 {[%emt 0:01:13][%mdl 512]} Bxf6 {[%emt 0:02:02]} 35. Rxb7+ {[%emt 0:00:06][%mdl 4096] Endgame KRB-KRN} Ke6 {[%emt 0:00:25]} 36. Rxa7 {[%emt 0:01:50]} Bd4 $2 {[%emt 0:00:16]} (36... Bd8 37. a4 Rh3+ 38. Ke2 Rh2+ 39. Ke3 Ra2 40. Ra6+ Kd7 41. Nf6+ Bxf6) 37. a4 {[%emt 0:01:53][%cal Ba2a4,Ba4a5,Ba5a6,Ba6a7][%mdl 32]} Rh2 {[%emt 0:03:48]} 38. Re7+ {[%emt 0:01:12]} Kd6 {[%emt 0:00:17]} 39. Re2 {[%emt 0:00:35] Prevents Rd2.} Rh3+ {[%emt 0:01:17]} 40. Kg2 {[%emt 0:00:01]} Rxd3 {[%emt 0:00:27]} 41. Ra2 {[%emt 0:00:06] Prevents Ra3. aiming for a5.} ({Not} 41. Ne7 Rc3 42. Nxf5+ Kc7 43. Nxd4 cxd4 $18) 41... Kc6 {[%emt 0:08:12]} 42. a5 {[%emt 0:00:44] White threatens a6 and mate.} Kb7 {[%emt 0:00:50] [#]} 43. a6+ $1 {[%emt 0:00:22]} Ka7 {[%emt 0:00:10]} 44. Nc7 {[%emt 0:01:33] White wants to mate with Nb5+.} Rb3 {[%emt 0:01:56]} (44... Be3 $18 45. Nb5+ Ka8) 45. Nb5+ {[%emt 0:00:47] White mates.} Ka8 {[%emt 0:00:15]} 46. a7 {[%emt 0:00:37]} Rb2+ {[%emt 0:00:23]} 47. Rxb2 {[%emt 0:00:06]} Bxb2 {[%emt 0:00:04] KB-KN} 48. Kf3 {[%emt 0:00:35]} Bf6 {[%emt 0:00:23]} 49. Nd6 {[%emt 0:00:46]} Kxa7 {[%emt 0:00:16]} 50. Nxf5 {[%emt 0:00:07]} Kb6 {[%emt 0:00:22]} 51. Ke4 {[%emt 0:00:10]} Kc6 {[%emt 0:00:10]} 52. Ne3 {[%emt 0:00:21]} Bd4 {[%emt 0:00:25]} 53. Nd5 {[%emt 0:00:32]} Kd6 {[%emt 0:00:20]} 54. Kf5 {[%emt 0:00:29]} (54. f5 Bb2 55. Nf4 Ke7 $18) 54... Bh8 {[%emt 0:00:41]} 55. Nf6 {[%emt 0:01:10]} Ke7 {[%emt 0:00:26]} 56. Ne4 {[%emt 0:00:34]} Bd4 {[%emt 0:00:10]} 57. Kg6 {[%emt 0:01:22]} Ke6 {[%emt 0:00:57]} 58. f5+ {[%emt 0:00:27]} Ke5 {[%emt 0:00:28] [#]} 59. f6 $1 {[%emt 0:00:08]} Kxe4 {[%emt 0:00:19] KB-KPP} (59... Kf4 60. f7) 60. f7 {[%emt 0:00:05]} Kd3 {[%emt 0:00:05]} 61. f8=Q {[%emt 0:00:06]} Kxc4 {[%emt 0:00:06]} 62. Qf1+ {[%emt 0:00:43]} Kb3 {[%emt 0:00:19]} 63. Kf5 {[%emt 0:00:15]} c4 {[%emt 0:00:05]} 64. Ke4 {[%emt 0:00:09]} Bb2 {[%emt 0:00:05]} 65. Qd1+ {[%emt 0:00:26]} Ka3 {[%emt 0:00:12]} 66. Qc2 {[%emt 0:00:27]} c3 {[%emt 0:00:12]} 67. Kd3 {[%emt 0:00:47]} Ka2 {[%emt 0:00:04]} 68. Kc4 {[%emt 0:00:52]} Ka1 {[%emt 0:00:03]} 69. Kb3 {[%emt 0:00:37]} Bc1 {[%emt 0:00:05]} 70. Qa2# {[%emt 0:00:06] Weighted Error Value: White=0.17 (very precise) /Black=0.31} 1-0